[Event "Championnat du monde jeunes U10"]
[Date "2024.11.25"]
[White "Seo, Juwon"]
[Black "Akramov, Khasan"]
[WhiteElo "1721"]
[BlackElo "1835"]
[Round "10.21"]
[Result "1/2-1/2"]
[TimeControl "5400+30"]

1. e4 {[%clk 1:30:57]} 1... c5 {[%clk 1:30:53]} 2. Nf3 {[%clk 1:31:22]} 2... Nc6
{[%clk 1:31:18]} 3. d4 {[%clk 1:31:44]} 3... cxd4 {[%clk 1:31:42]} 4. Nxd4
{[%clk 1:32:08]} 4... g6 {[%clk 1:32:06]} 5. c4 {[%clk 1:32:31]} 5... Nf6 {[%clk
1:31:55]} 6. Nc3 {[%clk 1:31:34]} 6... Nxd4 {[%clk 1:32:13]} 7. Qxd4 {[%clk
1:31:58]} 7... d6 {[%clk 1:32:25]} 8. Be3 {[%clk 1:31:25]} 8... Bg7 {[%clk
1:31:28]} 9. f3 {[%clk 1:30:52]} 9... O-O {[%clk 1:31:39]} 10. Qd2 {[%clk
1:29:27]} 10... a6 {[%clk 1:31:13]} 11. Rc1 {[%clk 1:26:58]} 11... Qa5 {[%clk
1:20:13]} 12. b3 {[%clk 1:19:40]} 12... Bd7 {[%clk 1:12:13]} 13. Nd5 {[%clk
1:13:24]} 13... Qxd2+ {[%clk 1:10:07]} 14. Kxd2 {[%clk 1:13:17]} 14... Nxd5
{[%clk 1:10:09]} 15. cxd5 {[%clk 1:13:33]} 15... Rfc8 {[%clk 1:05:17]} 16. Be2
{[%clk 1:02:14]} 16... Bb2 {[%clk 0:58:42]} 17. Rc2 {[%clk 0:59:02]} 17... Ba3
{[%clk 0:48:00]} 18. Bd4 {[%clk 0:54:21]} 18... Rxc2+ {[%clk 0:40:04]} 19. Kxc2
{[%clk 0:54:42]} 19... Rc8+ {[%clk 0:40:25]} 20. Kb1 {[%clk 0:54:28]} 20... Kf8
{[%clk 0:35:24]} 21. g4 {[%clk 0:50:18]} 21... e5 {[%clk 0:27:16]} 22. dxe6
{[%clk 0:39:34]} 22... Bxe6 {[%clk 0:26:11]} 23. Bb2 {[%clk 0:33:05]} 23... Bc5
{[%clk 0:22:30]} 24. Rc1 {[%clk 0:28:05]} 24... Be3 {[%clk 0:19:20]} 25. Rxc8+
{[%clk 0:27:50]} 25... Bxc8 {[%clk 0:19:13]} 26. Bf6 {[%clk 0:26:20]} 26... Be6
{[%clk 0:17:56]} 27. Kc2 {[%clk 0:26:23]} 27... Bf4 {[%clk 0:17:53]} 28. h3
{[%clk 0:26:18]} 28... Ke8 {[%clk 0:17:40]} 29. Kd3 {[%clk 0:25:43]} 29... Kd7
{[%clk 0:17:18]} 30. Kc3 {[%clk 0:18:14]} 30... Kc6 {[%clk 0:15:37]} 31. Bc4
{[%clk 0:16:17]} 31... d5 {[%clk 0:13:45]} 32. exd5+ {[%clk 0:10:09]} 32... Bxd5
{[%clk 0:14:11]} 33. Bxd5+ {[%clk 0:10:14]} 33... Kxd5 {[%clk 0:14:37]} 34. Kd3
{[%clk 0:10:31]} 34... Bc1 {[%clk 0:13:27]} 35. Kc2 {[%clk 0:09:51]} 35... Be3
{[%clk 0:13:39]} 36. Kd3 {[%clk 0:10:06]} 36... Bf4 {[%clk 0:14:03]} 37. a3
{[%clk 0:07:41]} 37... Bc1 {[%clk 0:13:25]} 38. a4 {[%clk 0:08:01]} 38... Bf4
{[%clk 0:13:48]} 39. Bd4 {[%clk 0:06:40]} 39... Bc1 {[%clk 0:12:20]} 40. Bf6
{[%clk 0:06:51]} 40... Bf4 {[%clk 0:12:21]} 41. Bd4 {[%clk 0:07:11]} 41... Bg5
{[%clk 0:12:38]} 42. Bb2 {[%clk 0:06:03]} 42... Bf4 {[%clk 0:11:55]} 43. Bd4
{[%clk 0:05:02]} 43... Bd2 {[%clk 0:10:03]} 44. Bb2 {[%clk 0:04:48]} 44... Bb4
{[%clk 0:09:21]} 45. Bd4 {[%clk 0:04:51]} 45... Bd6 {[%clk 0:09:29]} 46. Bb2
{[%clk 0:04:34]} 46... Be5 {[%clk 0:09:23]} 47. Bc1 {[%clk 0:04:13]} 1/2-1/2

[Variant "Standard"]
[Site "Europe Echecs"]

[Event "Championnat du monde jeunes U10"]
[Date "2024.11.25"]
[White "Li, Weilong"]
[Black "Guirado Lara, Pablo"]
[WhiteElo "1735"]
[BlackElo "1832"]
[Round "10.22"]
[Result "1-0"]
[TimeControl "5400+30"]

1. e4 {[%clk 1:30:57]} 1... c5 {[%clk 1:30:57]} 2. Nf3 {[%clk 1:31:23]} 2... e6
{[%clk 1:31:22]} 3. d4 {[%clk 1:31:48]} 3... cxd4 {[%clk 1:31:47]} 4. Nxd4
{[%clk 1:32:14]} 4... Nf6 {[%clk 1:32:08]} 5. Nc3 {[%clk 1:32:39]} 5... Nc6
{[%clk 1:32:32]} 6. a3 {[%clk 1:33:01]} 6... Qc7 {[%clk 1:32:17]} 7. Be3 {[%clk
1:33:19]} 7... a6 {[%clk 1:31:54]} 8. f4 {[%clk 1:32:17]} 8... d6 {[%clk
1:25:38]} 9. Qf3 {[%clk 1:32:36]} 9... Bd7 {[%clk 1:11:51]} 10. O-O-O {[%clk
1:30:38]} 10... Nxd4 {[%clk 1:09:20]} 11. Rxd4 {[%clk 1:27:50]} 11... Bc6 {[%clk
1:02:01]} 12. g4 {[%clk 1:21:57]} 12... d5 {[%clk 0:54:30]} 13. e5 {[%clk
1:22:00]} 13... Nd7 {[%clk 0:54:14]} 14. b4 {[%clk 1:07:57]} 14... g5 {[%clk
0:39:43]} 15. Bg2 {[%clk 0:57:26]} 15... gxf4 {[%clk 0:37:26]} 16. Bxf4 {[%clk
0:57:43]} 16... Nxe5 {[%clk 0:25:18]} 17. Qg3 {[%clk 0:58:05]} 17... Bd6 {[%clk
0:25:38]} 18. Re1 {[%clk 0:43:49]} 18... f6 {[%clk 0:24:28]} 19. g5 {[%clk
0:43:56]} 19... Qf7 {[%clk 0:07:17]} 20. gxf6 {[%clk 0:39:14]} 20... Rg8 {[%clk
0:06:42]} 21. Qe3 {[%clk 0:39:15]} 21... Rxg2 {[%clk 0:05:42]} 22. Bxe5 {[%clk
0:39:37]} 22... O-O-O {[%clk 0:05:48]} 23. Bxd6 {[%clk 0:39:36]} 23... Rxd6
{[%clk 0:06:16]} 24. Qe5 {[%clk 0:39:16]} 24... Qc7 {[%clk 0:00:57]} 25. Ne4
{[%clk 0:35:32]} 25... Rd7 {[%clk 0:00:38]} 26. Qxc7+ {[%clk 0:35:57]} 26...
Kxc7 {[%clk 0:00:57]} 27. Nc5 {[%clk 0:36:23]} 27... Rf2 {[%clk 0:00:38]} 28.
Nxe6+ {[%clk 0:36:36]} 28... Kb6 {[%clk 0:00:38]} 29. Rf4 {[%clk 0:36:47]} 29...
Rxf4 {[%clk 0:00:50]} 30. Nxf4 {[%clk 0:37:09]} 30... Rf7 {[%clk 0:00:41]} 31.
Re6 {[%clk 0:37:29]} 31... Kc7 {[%clk 0:00:45]} 32. Kd2 {[%clk 0:37:21]} 32...
Kd7 {[%clk 0:00:34]} 33. Kd3 {[%clk 0:37:43]} 33... Bb5+ {[%clk 0:00:34]} 34.
Kd4 {[%clk 0:38:07]} 34... Bc4 {[%clk 0:00:35]} 35. Ke5 {[%clk 0:38:25]} 35...
Rf8 {[%clk 0:01:04]} 36. Re7+ {[%clk 0:39:17]} 36... Kc6 {[%clk 0:00:50]} 37.
Ne6 {[%clk 0:39:37]} 37... d4 38. Ke4 1-0

[Variant "Standard"]
[Site "Europe Echecs"]

[Event "Championnat du monde jeunes U10"]
[Date "2024.11.25"]
[White "Babeikin, Kiryl"]
[Black "Perez Solanas, Hugo"]
[WhiteElo "1721"]
[BlackElo "1824"]
[Round "10.23"]
[Result "1/2-1/2"]
[TimeControl "5400+30"]

1. e4 {[%clk 1:30:57]} 1... c5 {[%clk 1:30:54]} 2. Nf3 {[%clk 1:31:22]} 2... d6
{[%clk 1:31:16]} 3. d4 {[%clk 1:31:46]} 3... cxd4 {[%clk 1:31:39]} 4. Nxd4
{[%clk 1:32:10]} 4... Nf6 {[%clk 1:32:00]} 5. Nc3 {[%clk 1:32:28]} 5... g6
{[%clk 1:32:22]} 6. Be2 {[%clk 1:32:49]} 6... Bg7 {[%clk 1:32:44]} 7. O-O {[%clk
1:32:43]} 7... O-O {[%clk 1:33:04]} 8. Re1 {[%clk 1:33:03]} 8... Nc6 {[%clk
1:33:21]} 9. Nb3 {[%clk 1:33:15]} 9... a6 {[%clk 1:31:33]} 10. Bf1 {[%clk
1:33:10]} 10... Bg4 {[%clk 1:31:43]} 11. f3 {[%clk 1:31:21]} 11... Be6 {[%clk
1:32:04]} 12. Be3 {[%clk 1:30:36]} 12... b5 {[%clk 1:31:02]} 13. a4 {[%clk
1:23:43]} 13... b4 {[%clk 1:15:55]} 14. Nd5 {[%clk 1:22:03]} 14... Bxd5 {[%clk
1:07:36]} 15. exd5 {[%clk 1:22:25]} 15... Ne5 {[%clk 1:07:48]} 16. a5 {[%clk
1:22:12]} 16... Qc7 {[%clk 1:03:37]} 17. Qd2 {[%clk 1:14:39]} 17... Qb7 {[%clk
1:02:10]} 18. Red1 {[%clk 1:14:53]} 18... Rac8 {[%clk 1:00:55]} 19. Ra4 Nc4
{[%clk 0:53:23]} 20. Rxb4 {[%clk 1:09:45]} 20... Nxd2 {[%clk 0:53:17]} 21. Rxb7
{[%clk 1:10:09]} 21... Nxf1 {[%clk 0:53:29]} 22. Kxf1 {[%clk 1:10:29]} 22...
Rxc2 {[%clk 0:53:35]} 23. Nd4 {[%clk 1:10:47]} 23... Rc4 {[%clk 0:53:02]} 24.
Nc6 {[%clk 1:11:04]} 24... Nxd5 {[%clk 0:49:04]} 25. Nxe7+ {[%clk 1:00:52]}
25... Nxe7 {[%clk 0:49:30]} 26. Rxe7 {[%clk 1:01:14]} 26... Bxb2 {[%clk
0:46:37]} 27. Ra7 {[%clk 0:59:52]} 27... Re8 {[%clk 0:44:22]} 28. Bb6 {[%clk
0:54:38]} 28... Rc2 {[%clk 0:38:18]} 29. Re1 {[%clk 0:53:53]} 29... Rxe1+ {[%clk
0:33:20]} 30. Kxe1 {[%clk 0:54:16]} 30... Rxg2 {[%clk 0:28:31]} 31. Rxa6 {[%clk
0:54:39]} 31... Bc3+ {[%clk 0:26:12]} 32. Kf1 {[%clk 0:48:48]} 32... Rb2 {[%clk
0:25:52]} 33. Ra8+ {[%clk 0:42:53]} 33... Kg7 {[%clk 0:26:20]} 34. Rc8 {[%clk
0:42:58]} 34... Be5 {[%clk 0:24:00]} 35. Rc6 {[%clk 0:16:13]} 35... Ra2 {[%clk
0:22:43]} 36. Bc7 {[%clk 0:16:03]} 36... Bxh2 {[%clk 0:19:49]} 37. a6 {[%clk
0:14:32]} 37... d5 {[%clk 0:19:44]} 38. Bb6 {[%clk 0:13:31]} 38... Bb8 {[%clk
0:17:01]} 39. Bd4+ {[%clk 0:12:54]} 39... Kh6 {[%clk 0:15:46]} 40. Rc8 {[%clk
0:12:46]} 40... Rxa6 {[%clk 0:15:35]} 41. Rxb8 {[%clk 0:13:10]} 41... Kg5 {[%clk
0:15:20]} 42. Rb7 {[%clk 0:12:33]} 42... Ra4 {[%clk 0:15:07]} 43. Bf2 {[%clk
0:11:06]} 43... Kf6 {[%clk 0:15:19]} 44. Kg2 {[%clk 0:10:51]} 44... h5 {[%clk
0:12:17]} 45. Bb6 {[%clk 0:10:38]} 45... Ke6 {[%clk 0:10:27]} 46. Bd8 {[%clk
0:10:16]} 46... Ra8 {[%clk 0:09:05]} 47. Bh4 {[%clk 0:10:22]} 47... Rf8 {[%clk
0:08:06]} 48. Re7+ {[%clk 0:08:57]} 48... Kf5 {[%clk 0:07:40]} 49. Bg3 {[%clk
0:09:02]} 49... f6 {[%clk 0:06:56]} 50. Rd7 {[%clk 0:09:26]} 50... g5 {[%clk
0:07:06]} 51. Rxd5+ {[%clk 0:09:51]} 51... Kg6 {[%clk 0:07:29]} 52. Rd6 {[%clk
0:09:40]} 52... h4 {[%clk 0:07:07]} 53. Be5 {[%clk 0:10:02]} 53... Kf5 {[%clk
0:07:24]} 54. Bc3 {[%clk 0:08:48]} 54... Rf7 {[%clk 0:07:41]} 55. Rc6 {[%clk
0:07:26]} 55... Rf8 {[%clk 0:07:47]} 56. Ra6 {[%clk 0:03:34]} 56... Rf7 {[%clk
0:08:12]} 57. Rc6 {[%clk 0:02:59]} 57... Rf8 {[%clk 0:08:38]} 58. Rc5+ {[%clk
0:02:55]} 58... Kg6 {[%clk 0:08:59]} 59. Kh3 {[%clk 0:02:03]} 59... f5 {[%clk
0:08:47]} 60. Rc7 {[%clk 0:01:36]} 60... Re8 {[%clk 0:08:34]} 61. Rg7+ {[%clk
0:00:49]} 61... Kh5 {[%clk 0:08:57]} 62. Rh7+ {[%clk 0:00:53]} 1/2-1/2

[Variant "Standard"]
[Site "Europe Echecs"]

[Event "Championnat du monde jeunes U10"]
[Date "2024.11.25"]
[White "Ejsymont, Eryk"]
[Black "Qian, Qipeng"]
[WhiteElo "1910"]
[BlackElo "1641"]
[Round "10.24"]
[Result "0-1"]
[TimeControl "5400+30"]

1. e4 {[%clk 1:30:57]} 1... e6 {[%clk 1:30:49]} 2. d4 {[%clk 1:31:20]} 2... d5
{[%clk 1:31:14]} 3. Nd2 {[%clk 1:31:48]} 3... c5 {[%clk 1:31:39]} 4. exd5 {[%clk
1:32:10]} 4... Qxd5 {[%clk 1:32:05]} 5. Ngf3 {[%clk 1:32:16]} 5... cxd4 {[%clk
1:31:55]} 6. Bc4 {[%clk 1:32:41]} 6... Qd6 {[%clk 1:32:19]} 7. O-O {[%clk
1:32:37]} 7... Nf6 {[%clk 1:32:40]} 8. Nb3 {[%clk 1:32:23]} 8... Nc6 {[%clk
1:30:40]} 9. Nbxd4 {[%clk 1:18:07]} 9... Nxd4 {[%clk 1:27:30]} 10. Nxd4 {[%clk
1:16:53]} 10... a6 {[%clk 1:25:03]} 11. a4 {[%clk 1:15:21]} 11... Qc7 {[%clk
1:24:50]} 12. Qe2 {[%clk 1:08:10]} 12... Bd6 {[%clk 1:22:51]} 13. h3 {[%clk
1:07:26]} 13... O-O {[%clk 1:21:44]} 14. Bg5 {[%clk 1:02:23]} 14... Bh2+ {[%clk
1:20:57]} 15. Kh1 {[%clk 1:02:49]} 15... Be5 {[%clk 1:21:02]} 16. Rad1 {[%clk
0:54:52]} 16... h6 {[%clk 0:57:27]} 17. Bh4 {[%clk 0:46:54]} 17... g5 {[%clk
0:33:43]} 18. Bg3 {[%clk 0:46:27]} 18... Bf4 {[%clk 0:33:14]} 19. Bxf4 {[%clk
0:33:42]} 19... Qxf4 {[%clk 0:33:02]} 20. g3 {[%clk 0:29:02]} 20... Qe4+ {[%clk
0:29:41]} 21. Qxe4 {[%clk 0:29:10]} 21... Nxe4 {[%clk 0:30:09]} 22. a5 {[%clk
0:26:51]} 22... e5 {[%clk 0:29:20]} 23. Nf3 {[%clk 0:24:12]} 23... Bxh3 {[%clk
0:29:47]} 24. Bd5 {[%clk 0:18:42]} 24... Bxf1 {[%clk 0:30:07]} 25. Bxe4 {[%clk
0:17:00]} 25... Be2 {[%clk 0:30:27]} 26. Rd7 {[%clk 0:17:23]} 26... Bxf3+ {[%clk
0:30:31]} 27. Bxf3 {[%clk 0:17:48]} 27... Rad8 {[%clk 0:30:20]} 28. Rxb7 {[%clk
0:16:55]} 28... Rd2 {[%clk 0:30:38]} 29. Kg2 {[%clk 0:13:56]} 29... f5 {[%clk
0:30:53]} 30. Bc6 {[%clk 0:13:37]} 30... e4 {[%clk 0:30:26]} 31. Kg1 {[%clk
0:12:29]} 31... Rxc2 {[%clk 0:30:46]} 32. Bd5+ {[%clk 0:12:53]} 32... Kh8 {[%clk
0:28:52]} 33. Be6 {[%clk 0:09:41]} 33... Rf6 {[%clk 0:28:29]} 34. Rb8+ {[%clk
0:10:05]} 34... Kg7 {[%clk 0:28:51]} 35. Rb7+ {[%clk 0:10:27]} 35... Kg6 {[%clk
0:29:09]} 36. Bd7 {[%clk 0:09:55]} 36... Rc1+ {[%clk 0:28:54]} 37. Kg2 {[%clk
0:10:17]} 37... Rd6 {[%clk 0:29:04]} 38. Be8+ {[%clk 0:09:55]} 38... Kf6 {[%clk
0:29:29]} 39. Rf7+ {[%clk 0:09:28]} 39... Ke6 {[%clk 0:29:34]} 40. Rh7 {[%clk
0:09:27]} 40... Rdd1 {[%clk 0:29:43]} 41. Bf7+ {[%clk 0:08:29]} 41... Kf6 {[%clk
0:30:09]} 42. Rxh6+ {[%clk 0:08:08]} 42... Kxf7 {[%clk 0:30:35]} 43. Rh2 {[%clk
0:08:06]} 43... g4 {[%clk 0:31:01]} 44. Rh7+ {[%clk 0:08:16]} 44... Kg6 {[%clk
0:31:28]} 45. Rh1 {[%clk 0:08:26]} 45... Rxh1 {[%clk 0:31:50]} 46. f3 {[%clk
0:08:53]} 46... e3 {[%clk 0:32:14]} 47. fxg4 {[%clk 0:09:11]} 47... fxg4 {[%clk
0:32:42]} 0-1

[Variant "Standard"]
[Site "Europe Echecs"]

[Event "Championnat du monde jeunes U10"]
[Date "2024.11.25"]
[White "Ivanovic, Leonid"]
[Black "Todmunkh, Turbat"]
[WhiteElo "1990"]
[BlackElo "1773"]
[Round "10.25"]
[Result "0-1"]
[TimeControl "5400+30"]

1. d4 {[%clk 1:30:39]} 1... Nf6 {[%clk 1:30:48]} 2. c4 {[%clk 1:30:56]} 2... c5
{[%clk 1:31:12]} 3. d5 {[%clk 1:31:13]} 3... b5 {[%clk 1:31:32]} 4. cxb5 {[%clk
1:31:13]} 4... a6 {[%clk 1:31:51]} 5. b6 {[%clk 1:31:06]} 5... e6 {[%clk
1:29:08]} 6. Nc3 {[%clk 1:30:06]} 6... Bb7 {[%clk 1:29:27]} 7. e4 {[%clk
1:16:22]} 7... exd5 {[%clk 1:29:29]} 8. exd5 {[%clk 1:12:31]} 8... d6 {[%clk
1:29:17]} 9. Bc4 {[%clk 1:08:08]} 9... Be7 {[%clk 1:26:43]} 10. a4 {[%clk
1:03:21]} 10... Qxb6 {[%clk 1:26:34]} 11. a5 {[%clk 1:03:08]} 11... Qd8 {[%clk
1:26:58]} 12. Nge2 {[%clk 1:03:08]} 12... O-O {[%clk 1:27:14]} 13. O-O {[%clk
1:03:14]} 13... Nbd7 {[%clk 1:27:29]} 14. Ng3 {[%clk 1:02:05]} 14... Re8 {[%clk
1:15:28]} 15. b3 {[%clk 1:00:11]} 15... Bf8 {[%clk 1:15:24]} 16. f4 {[%clk
0:54:12]} 16... Qc7 {[%clk 1:09:52]} 17. Bb2 {[%clk 0:47:32]} 17... Rab8 {[%clk
1:02:20]} 18. Qd3 {[%clk 0:43:46]} 18... Ra8 {[%clk 0:56:53]} 19. Nce4 {[%clk
0:38:31]} 19... Nxe4 {[%clk 0:49:01]} 20. Nxe4 {[%clk 0:38:36]} 20... h6 {[%clk
0:49:01]} 21. Rfe1 {[%clk 0:34:52]} 21... Re7 {[%clk 0:46:09]} 22. Re2 {[%clk
0:23:07]} 22... Rae8 {[%clk 0:44:00]} 23. Ng3 {[%clk 0:21:53]} 23... Rxe2 {[%clk
0:44:17]} 24. Nxe2 {[%clk 0:22:21]} 24... Be7 {[%clk 0:28:42]} 25. Bxa6 {[%clk
0:15:46]} 25... Bxa6 {[%clk 0:18:22]} 26. Qxa6 {[%clk 0:16:14]} 26... Bf6 {[%clk
0:18:34]} 27. Bxf6 {[%clk 0:13:07]} 27... Nxf6 {[%clk 0:17:21]} 28. Nc3 {[%clk
0:13:08]} 28... Re3 {[%clk 0:11:56]} 29. Qc4 {[%clk 0:08:39]} 29... Qe7 {[%clk
0:10:36]} 30. Kf1 {[%clk 0:06:36]} 30... Ng4 {[%clk 0:09:16]} 31. Ne2 {[%clk
0:00:52]} 31... Qh4 {[%clk 0:08:57]} 32. Ng3 {[%clk 0:00:35]} 32... Qxh2 {[%clk
0:09:17]} 33. a6 {[%clk 0:00:39]} 33... Qxg3 {[%clk 0:09:42]} 34. Qc2 {[%clk
0:00:55]} 34... Qh2 {[%clk 0:09:51]} 35. a7 {[%clk 0:00:35]} 35... Qh1# {[%clk
0:10:16]} 0-1

[Variant "Standard"]
[Site "Europe Echecs"]

[Event "Championnat du monde jeunes U10"]
[Date "2024.11.25"]
[White "Tenuun, Tseesuren"]
[Black "Meitzner, Jonathan Franz"]
[WhiteElo "1702"]
[BlackElo "1876"]
[Round "10.26"]
[Result "1/2-1/2"]
[TimeControl "5400+30"]

1. d4 {[%clk 1:30:59]} 1... Nf6 {[%clk 1:30:55]} 2. c4 {[%clk 1:31:22]} 2... e6
{[%clk 1:31:21]} 3. Nf3 {[%clk 1:31:44]} 3... d5 {[%clk 1:31:39]} 4. Nc3 {[%clk
1:31:43]} 4... Be7 {[%clk 1:26:48]} 5. Bg5 {[%clk 1:31:56]} 5... O-O {[%clk
1:27:04]} 6. e3 {[%clk 1:31:15]} 6... Nbd7 {[%clk 1:26:38]} 7. Rc1 {[%clk
1:31:27]} 7... c6 {[%clk 1:20:55]} 8. Bd3 {[%clk 1:21:32]} 8... Ne8 {[%clk
1:11:06]} 9. Bxe7 {[%clk 1:12:13]} 9... Qxe7 {[%clk 1:11:21]} 10. O-O {[%clk
1:11:10]} 10... f5 {[%clk 1:06:24]} 11. Ne5 {[%clk 1:09:29]} 11... Nd6 {[%clk
1:03:08]} 12. Ne2 {[%clk 1:01:53]} 12... Ne4 {[%clk 0:53:01]} 13. f3 {[%clk
1:01:20]} 13... Nxe5 {[%clk 0:51:13]} 14. dxe5 {[%clk 0:57:32]} 14... Nc5 {[%clk
0:51:14]} 15. Bb1 {[%clk 0:56:38]} 15... b6 {[%clk 0:48:56]} 16. Nd4 {[%clk
0:51:04]} 16... Bb7 {[%clk 0:46:13]} 17. b4 {[%clk 0:48:46]} 17... Nd7 {[%clk
0:44:21]} 18. cxd5 {[%clk 0:48:17]} 18... cxd5 {[%clk 0:43:34]} 19. Rc7 {[%clk
0:48:27]} 19... Bc8 {[%clk 0:30:14]} 20. Qb3 {[%clk 0:32:36]} 20... Kh8 {[%clk
0:22:45]} 21. Rfc1 {[%clk 0:28:59]} 21... Ba6 {[%clk 0:10:21]} 22. b5 {[%clk
0:26:41]} 22... Bc8 {[%clk 0:08:01]} 23. R1c6 {[%clk 0:23:57]} 23... Qh4 {[%clk
0:06:23]} 24. g3 {[%clk 0:22:01]} 24... Qh5 {[%clk 0:04:03]} 25. Qc3 {[%clk
0:14:51]} 25... Nc5 {[%clk 0:03:36]} 26. Nb3 {[%clk 0:04:15]} 26... Qxf3 {[%clk
0:01:54]} 27. Nxc5 {[%clk 0:04:36]} 27... bxc5 {[%clk 0:01:44]} 28. Qxc5 {[%clk
0:04:32]} 28... Qd1+ {[%clk 0:02:03]} 29. Kf2 {[%clk 0:03:20]} 29... Qd2+ {[%clk
0:02:18]} 30. Kf1 {[%clk 0:02:10]} 30... Qd1+ {[%clk 0:01:45]} 31. Kg2 {[%clk
0:01:23]} 31... Qe2+ {[%clk 0:01:37]} 1/2-1/2

[Variant "Standard"]
[Site "Europe Echecs"]

[Event "Championnat du monde jeunes U10"]
[Date "2024.11.25"]
[White "Mikkelsen, Anders Askjaer"]
[Black "Wang, Rocky"]
[WhiteElo "1745"]
[BlackElo "1853"]
[Round "10.27"]
[Result "0-1"]
[TimeControl "5400+30"]

1. e4 {[%clk 1:30:42]} 1... c5 {[%clk 1:30:35]} 2. Nf3 {[%clk 1:30:51]} 2... Nc6
{[%clk 1:30:35]} 3. d4 {[%clk 1:31:06]} 3... cxd4 {[%clk 1:30:48]} 4. Nxd4
{[%clk 1:31:27]} 4... Nf6 {[%clk 1:30:40]} 5. Nc3 {[%clk 1:31:48]} 5... e5
{[%clk 1:30:35]} 6. Ndb5 {[%clk 1:32:07]} 6... d6 {[%clk 1:30:59]} 7. Bg5 {[%clk
1:32:16]} 7... a6 {[%clk 1:31:15]} 8. Na3 {[%clk 1:32:37]} 8... b5 {[%clk
1:30:46]} 9. Bxf6 {[%clk 1:32:47]} 9... gxf6 {[%clk 1:29:47]} 10. Nd5 {[%clk
1:32:55]} 10... Bg7 {[%clk 1:29:09]} 11. Bd3 {[%clk 1:32:41]} 11... Ne7 {[%clk
1:27:42]} 12. Nxe7 {[%clk 1:32:52]} 12... Qxe7 {[%clk 1:28:08]} 13. c4 {[%clk
1:33:04]} 13... f5 {[%clk 1:27:14]} 14. O-O {[%clk 1:31:30]} 14... O-O {[%clk
1:24:17]} 15. Re1 {[%clk 1:28:31]} 15... Rb8 {[%clk 1:19:00]} 16. Qh5 {[%clk
1:20:35]} 16... fxe4 {[%clk 1:13:10]} 17. Rxe4 {[%clk 1:18:00]} 17... f5 {[%clk
1:05:36]} 18. Rh4 {[%clk 1:16:24]} 18... Bf6 {[%clk 0:54:50]} 19. Rh3 {[%clk
1:16:32]} 19... e4 {[%clk 0:50:29]} 20. Re1 {[%clk 1:14:21]} 20... Qf7 {[%clk
0:47:04]} 21. Rg3+ {[%clk 1:12:46]} 21... Kh8 {[%clk 0:46:32]} 22. Qxf7 {[%clk
1:12:08]} 22... Rxf7 {[%clk 0:45:52]} 23. cxb5 {[%clk 1:11:00]} 23... f4 {[%clk
0:42:00]} 24. Bc4 {[%clk 1:10:36]} 24... fxg3 {[%clk 0:42:02]} 25. Bxf7 {[%clk
1:10:56]} 25... gxf2+ {[%clk 0:40:46]} 26. Kxf2 {[%clk 1:10:54]} 26... Bxb2
{[%clk 0:36:17]} 27. Nc4 {[%clk 1:10:36]} 27... Bd4+ {[%clk 0:35:33]} 28. Kg3
{[%clk 1:10:20]} 28... Rxb5 {[%clk 0:33:23]} 29. Rxe4 {[%clk 1:07:42]} 29...
Rg5+ {[%clk 0:28:08]} 30. Kh4 {[%clk 1:04:55]} 30... Bf6 {[%clk 0:27:38]} 31.
Nxd6 {[%clk 1:02:10]} 31... Rxg2+ {[%clk 0:27:37]} 0-1

[Variant "Standard"]
[Site "Europe Echecs"]

[Event "Championnat du monde jeunes U10"]
[Date "2024.11.25"]
[White "Nikitakis, Michail"]
[Black "Nguyen Minh"]
[WhiteElo "1818"]
[BlackElo "1760"]
[Round "10.28"]
[Result "1-0"]
[TimeControl "5400+30"]

1. e4 {[%clk 1:30:57]} 1... c5 {[%clk 1:30:51]} 2. Nf3 {[%clk 1:31:24]} 2... Nf6
{[%clk 1:31:14]} 3. e5 {[%clk 1:31:49]} 3... Nd5 {[%clk 1:31:36]} 4. Nc3 {[%clk
1:32:15]} 4... e6 {[%clk 1:31:56]} 5. Ne4 {[%clk 1:32:40]} 5... f5 {[%clk
1:31:27]} 6. Nc3 {[%clk 1:33:04]} 6... Ne7 {[%clk 1:28:03]} 7. Nb5 {[%clk
1:32:55]} 7... Ng6 {[%clk 1:27:40]} 8. b3 {[%clk 1:32:44]} 8... a6 {[%clk
1:27:28]} 9. Nd6+ {[%clk 1:32:54]} 9... Bxd6 {[%clk 1:27:51]} 10. exd6 {[%clk
1:32:59]} 10... Qf6 {[%clk 1:26:34]} 11. d4 {[%clk 1:25:17]} 11... h6 {[%clk
1:20:06]} 12. h4 {[%clk 0:44:50]} 12... cxd4 {[%clk 1:12:57]} 13. Qxd4 {[%clk
0:31:06]} 13... e5 {[%clk 1:07:31]} 14. Qc5 {[%clk 0:26:36]} 14... Nc6 {[%clk
1:00:00]} 15. Bb2 {[%clk 0:14:33]} 15... b6 {[%clk 0:53:32]} 16. Qe3 {[%clk
0:04:44]} 16... h5 {[%clk 0:48:59]} 17. O-O-O {[%clk 0:04:28]} 17... O-O {[%clk
0:47:37]} 18. Bc4+ {[%clk 0:04:40]} 18... Kh8 {[%clk 0:47:58]} 19. Qg5 {[%clk
0:03:31]} 19... Nf4 {[%clk 0:45:41]} 20. g3 {[%clk 0:03:06]} 20... b5 {[%clk
0:28:07]} 21. gxf4 {[%clk 0:03:06]} 21... bxc4 {[%clk 0:28:11]} 22. Qxh5+ {[%clk
0:02:12]} 22... Kg8 {[%clk 0:28:11]} 23. fxe5 {[%clk 0:01:48]} 23... Qe6 {[%clk
0:26:00]} 24. Rhg1 {[%clk 0:01:27]} 24... Qe8 {[%clk 0:24:59]} 25. Rxg7+ {[%clk
0:01:25]} 25... Kxg7 {[%clk 0:25:11]} 26. Rg1+ {[%clk 0:01:50]} 1-0

[Variant "Standard"]
[Site "Europe Echecs"]